[Event "Club Ajedrez Silla 60 Years 2022"]
[Site "Silla"]
[Date "2022.05.13"]
[Round "9.3"]
[White "Petrov, Marian"]
[Black "Salvador Lopez, Daniel"]
[Result "1-0"]
[ECO "B12"]
[WhiteElo "2456"]
[BlackElo "2134"]
[Annotator "TA"]
[PlyCount "59"]
[EventDate "2022.05.09"]
[EventType "tourn"]
[EventCountry "ESP"]
[SourceTitle "playchess.com"]
[Source "ChessBase"]
[SourceQuality "1"]
[TimeControl "5400+30"]

{[%evp 9,59,33,57,52,63,63,51,52,68,43,45,24,79,50,111,67,43,0,0,0,0,-101,-81,-24,266,287,429,441,523,514,508,484,475,407,427,412,809,785,738,766,757,760,882,873,936,933,899,894,1137,1129,1146,1116]} 1. e4 {[%emt 0:00:06]} c6 {[%emt 0:00:07]} 2. d4 {[%emt 0:00:07]} d5 {[%emt 0:00:08]} 3. e5 {[%emt 0:00:05]} c5 {[%emt 0:00:03]} 4. dxc5 {[%emt 0:00:07]} Nc6 {[%emt 0:00:22]} 5. f4 {[%emt 0:00:15]} e6 {[%emt 0:00:17]} 6. Be3 $1 {[%emt 0:00:07] B12: Caro-Kann: Advance Variation.} d4 {[%emt 0:00:12]} 7. Bf2 {[%emt 0:00:05]} Bxc5 {[%emt 0:00:08]} 8. Nd2 {[%emt 0:01:51] White is slightly better.} Nge7 {[%emt 0:03:38][%cal Bg8e7,Be7d5,Bd5e3][%mdl 32]} 9. Bd3 {[%emt 0:06:00]} Nd5 {[%emt 0:01:29]} 10. Qf3 {[%emt 0:04:37]} Qa5 {[%emt 0:03:50]} (10... O-O $11) 11. a3 {[%emt 0:02:30]} g5 {[%emt 0:20:51]} (11... Ncb4 $1 $14) 12. g3 {[%emt 0:01:16] [#]} Bd7 $146 {[%emt 0:01:33][%cal Oc6b4]} ({Predecessor:} 12... Bb4 13. Rd1 Bxd2+ 14. Rxd2 Bd7 15. Ne2 O-O-O 16. Be4 Ne3 17. Bxe3 dxe3 18. Qxe3 gxf4 19. gxf4 {1-0 (27) Ghimpu,S (2355)-Padurariu,M (2186) Jupiter 2021}) 13. Ne2 {[%emt 0:03:11] Black must now prevent 0-0-0.} g4 $1 {[%emt 0:14:00]} ({Resist} 13... gxf4 14. gxf4 Ncb4 15. Bxd4 $14) 14. Qxg4 {[%emt 0:04:15] aiming for Qf3.} Ne3 {[%emt 0:01:59]} 15. Qh3 {[%emt 0:17:33] [#]} (15. Qg7 $11 {remains equal.} O-O-O 16. Rc1 (16. Qxf7 Bb4 $17)) 15... Nb4 $3 $17 {[%emt 0:04:07][%mdl 576] Pin} 16. Rc1 {[%emt 0:00:28]} Bc6 $2 {[%emt 0:04:47][%mdl 8192] This move loses the game for Black.} (16... Nxd3+ $11 17. cxd3 Bb6) 17. axb4 $18 {[%emt 0:01:16]} Bxb4 {[%emt 0:04:35] [#]} (17... Qxb4 $142 18. Rg1 (18. c3 dxc3 19. bxc3 Qa4 $18) 18... O-O-O) 18. c3 $1 {[%emt 0:01:25][%cal Bc2c3,Bc3b4][%mdl 32]} Ng2+ {[%emt 0:18:58]} (18... dxc3 19. bxc3) 19. Kf1 {[%emt 0:03:17]} Ne3+ {[%emt 0:00:17]} 20. Bxe3 {[%emt 0:04:53]} dxe3 {[%emt 0:00:20]} 21. cxb4 {[%emt 0:00:41]} Qd5 {[%emt 0:06:54]} 22. Be4 {[%emt 0:00:59]} exd2 {[%emt 0:00:52]} (22... Qxd2 $142 23. Bxc6+ bxc6) 23. Bxd5 {[%emt 0:00:08] White is clearly winning.} dxc1=Q+ {[%emt 0:00:10]} 24. Nxc1 {[%emt 0:00:04]} Bxd5 {[%emt 0:00:06]} 25. Rg1 {[%emt 0:00:06]} Rc8 {[%emt 0:00:12]} 26. Ne2 {[%emt 0:04:12]} Rc2 {[%emt 0:00:36]} 27. Nc3 {[%emt 0:02:04]} Bc4+ {[%emt 0:01:25]} 28. Ke1 {[%emt 0:00:06]} O-O {[%emt 0:01:23]} 29. Rg2 {[%emt 0:02:15]} Rc1+ {[%emt 0:00:07]} 30. Kd2 {[%emt 0:00:05] Weighted Error Value: White=0.22 (precise) /Black=0.50} 1-0

[Event "Club Ajedrez Silla 60 Years 2022"]
[Site "Silla"]
[Date "2022.05.13"]
[Round "10.1"]
[White "Kotronias, Vasilios"]
[Black "Petrov, Marian"]
[Result "1/2-1/2"]
[WhiteElo "2465"]
[BlackElo "2456"]
[Annotator "TA"]
[PlyCount "19"]
[EventDate "2022.05.09"]
[EventType "tourn"]
[EventCountry "ESP"]
[SourceTitle "playchess.com"]
[Source "ChessBase"]
[SourceQuality "1"]
[TimeControl "5400+30"]

{[%evp 18,19,18,0]} 1. e4 {[%emt 0:03:18]} c5 {[%emt 0:00:06]} 2. Nf3 {[%emt 0:00:06]} d6 {[%emt 0:00:06]} 3. d4 {[%emt 0:00:02]} cxd4 {[%emt 0:00:05]} 4. Nxd4 {[%emt 0:00:03]} Nf6 {[%emt 0:00:08]} 5. Nc3 {[%emt 0:00:02]} a6 {[%emt 0:00:07]} 6. Be3 {[%emt 0:00:05] [#]} Ng4 $146 {[%emt 0:00:06]} ({Predecessor:} 6... e5 7. Nb3 Be6 8. f3 Nbd7 9. g4 h6 10. Qd2 b5 11. O-O-O Nb6 12. Qf2 Rb8 13. Nc5 b4 14. Nb1 d5 15. Nxe6 fxe6 16. exd5 Nbxd5 17. Nd2 Qc7 18. Bd3 Be7 19. Bg6+ Kf8 20. Kb1 Nxe3 21. Qxe3 {1-0 (59) Dominguez Perez,L (2756)-Shankland,S (2709) Saint Louis 2022}) 7. Bc1 {[%emt 0:00:03]} Nf6 {[%emt 0:00:04]} 8. Be3 {[%emt 0:00:04]} Ng4 {[%emt 0:00:05]} 9. Bc1 {[%emt 0:00:03]} Nf6 {[%emt 0:00:04]} 10. Be3 {[%emt 0:00:04] 10.Be3 has lost popularity.} 1/2-1/2

[Event "Club Ajedrez Silla 60 Years 2022"]
[Site "Silla"]
[Date "2022.05.13"]
[Round "10.2"]
[White "Salvador Lopez, Daniel"]
[Black "Ilinca Ilinca, Felix Antonio"]
[Result "1/2-1/2"]
[ECO "A45"]
[WhiteElo "2134"]
[BlackElo "2165"]
[Annotator "TA"]
[PlyCount "108"]
[EventDate "2022.05.09"]
[EventType "tourn"]
[EventCountry "ESP"]
[SourceTitle "playchess.com"]
[Source "ChessBase"]
[SourceQuality "1"]
[TimeControl "5400+30"]

{[%evp 13,108,0,0,-22,0,0,0,-8,0,-23,-12,-13,-12,-20,42,-16,4,8,15,14,61,52,58,56,374,0,0,0,33,-170,-170,-193,-153,-161,-158,-145,-106,-103,-66,-115,-112,-143,-143,-151,-150,-187,-174,-214,-156,-192,-185,-187,-96,-306,-310,-310,-310,-354,-333,-622,-615,-593,-581,-512,-309,-309,-309,-309,-308,-308,-308,-308,-308,-382,-382,-382,-382,-382,-382,-382,-382,-382,-382,-382,-382,-382,-375,-375,-375,-382,-382,-382,0,-382,0,-375,0]} 1. d4 {[%emt 0:00:05]} Nf6 {[%emt 0:00:18]} 2. Bg5 {[%emt 0:00:09]} c5 {[%emt 0:00:34]} 3. d5 {[%emt 0:00:18]} Qb6 {[%emt 0:00:23]} 4. Nc3 {[%emt 0:01:16]} Qxb2 {[%emt 0:00:37]} 5. Bd2 {[%emt 0:00:14]} Qb6 {[%emt 0:00:29]} 6. e4 {[%emt 0:00:18]} e5 {[%emt 0:02:22]} 7. f4 {[%emt 0:02:36]} d6 $1 {[%emt 0:01:39]} 8. Rb1 {[%emt 0:00:20] A45: Trompowsky Attack.} Qd8 {[%emt 0:00:46]} 9. Nf3 {[%emt 0:00:30] Hoping for Bb5+.} exf4 {[%emt 0:02:21]} 10. Bxf4 {[%emt 0:00:26] The position is equal.} a6 {[%emt 0:01:58] Inhibits Bb5+.} 11. a4 {[%emt 0:02:34] [#] Inhibits b5.} Nbd7 $146 {[%emt 0:02:35]} (11... Nh5 $5 {[%cal Rh5f4]} 12. Be3 g6 $11) ({Predecessor:} 11... Be7 12. Bc4 O-O 13. O-O Nbd7 14. h3 Qa5 15. Bd2 Qc7 16. Bg5 Re8 17. Qd2 Qa5 {0-1 (37) Delgado Pico,L (2009)-Alonso Gomez,R (1858) Santa Eulalia de Roncana 2019}) 12. Bd3 {[%emt 0:01:05]} Be7 {[%emt 0:03:31]} 13. O-O {[%emt 0:00:16]} Qc7 {[%emt 0:01:47]} (13... Ng4 $11) 14. Qe2 {[%emt 0:01:38]} ({White should play} 14. Nd2 $14) 14... Ne5 {[%emt 0:10:50]} 15. Bxe5 {[%emt 0:00:34]} dxe5 {[%emt 0:00:22]} 16. Nd2 {[%emt 0:00:49]} Bg4 {[%emt 0:03:49]} (16... O-O $11) 17. Qe1 $1 $14 {[%emt 0:00:23]} O-O {[%emt 0:09:56]} 18. Nc4 {[%emt 0:00:37][%cal Od5d6] And now d6! would win.} Nd7 $2 {[%emt 0:01:42][%mdl 8192] [#]} (18... Rad8 $14) 19. d6 $2 {[%emt 0:05:07]} ({White must play} 19. Qg3 $1 $18) 19... Bxd6 $11 {[%emt 0:00:20]} 20. Nd5 {[%emt 0:01:07] Pair of Knights!} Qb8 {[%emt 0:08:08]} 21. Nf6+ $2 {[%emt 0:04:09]} Nxf6 $19 {[%emt 0:01:50]} 22. Rxf6 {[%emt 0:00:08]} gxf6 {[%emt 0:02:25]} 23. Qg3 {[%emt 0:01:35] [#]} Kh8 $1 {[%emt 0:02:10]} 24. Qxg4 {[%emt 0:04:21]} Bc7 {[%emt 0:01:11]} 25. Qf5 {[%emt 0:02:54]} Qd8 {[%emt 0:05:34][%cal Ob7b5] aiming for ...b5!} 26. Ne3 {[%emt 0:01:11]} (26. Rxb7 $15 {was preferrable.} Rg8 27. g3) 26... Rg8 $17 {[%emt 0:05:51][%cal Oc5c4]} 27. Nd5 {[%emt 0:00:35]} Rg5 {[%emt 0:01:06]} 28. Qf3 {[%emt 0:00:34]} Rb8 {[%emt 0:02:30]} 29. h4 {[%emt 0:01:31]} Rg7 {[%emt 0:00:59][%cal Oc5c4]} 30. c4 {[%emt 0:02:02]} b5 {[%emt 0:01:52]} 31. cxb5 {[%emt 0:01:39]} c4 {[%emt 0:02:48]} 32. Bxc4 {[%emt 0:01:11]} axb5 {[%emt 0:00:54]} (32... Bb6+ $19 33. Nxb6 Qxb6+ 34. Qf2 axb5 35. Qxb6 Rxb6) 33. Bxb5 $2 {[%emt 0:00:39]} (33. Rxb5 $17 {was called for.} Rc8 34. Bd3) 33... Bb6+ $19 {[%emt 0:01:13]} 34. Nxb6 {[%emt 0:03:32]} Qxb6+ {[%emt 0:00:37]} ({Worse is} 34... Rxb6 35. Rd1 Rd6 36. Rxd6 Qxd6 37. Kh2 $17) 35. Kh2 {[%emt 0:00:45]} Rbg8 {[%emt 0:01:04]} 36. Rf1 $2 {[%emt 0:05:54]} (36. Rb2) 36... Rxg2+ {[%emt 0:01:05]} 37. Qxg2 {[%emt 0:00:04]} Rxg2+ {[%emt 0:00:08]} 38. Kxg2 {[%emt 0:00:04][%mdl 4096] Endgame KQ-KRB} Kg7 {[%emt 0:00:46]} 39. Bd7 {[%emt 0:09:13]} Qd4 {[%emt 0:01:18]} 40. Bf5 {[%emt 0:00:38]} h5 {[%emt 0:00:59]} 41. Rf3 {[%emt 0:02:26]} Qxa4 {[%emt 0:00:22]} 42. Rg3+ {[%emt 0:00:51]} Kf8 {[%emt 0:00:13]} 43. Rh3 {[%emt 0:00:30]} Qc2+ {[%emt 0:00:33]} 44. Kg1 {[%emt 0:00:08]} Qe2 {[%emt 0:00:24]} 45. Rg3 {[%emt 0:03:32]} Ke7 {[%emt 0:02:57]} 46. Rh3 {[%emt 0:00:52]} Kd6 {[%emt 0:00:21]} 47. Rg3 {[%emt 0:00:10]} Kc5 {[%emt 0:00:27]} 48. Rc3+ {[%emt 0:01:09]} Kd4 {[%emt 0:00:07]} 49. Rg3 {[%emt 0:00:08]} Qe1+ {[%emt 0:00:46]} 50. Kg2 {[%emt 0:00:07]} Qd2+ {[%emt 0:00:08]} 51. Kg1 {[%emt 0:01:37]} Qf4 {[%emt 0:00:42]} 52. Rh3 {[%emt 0:00:12]} Qd2 {[%emt 0:01:51]} 53. Rg3 $1 {[%emt 0:00:16]} Qe1+ {[%emt 0:00:09]} 54. Kg2 {[%emt 0:00:12]} Qe2+ $2 {[%emt 0:01:03] Weighted Error Value: White=0.34/Black=0.44} (54... Kc5 $19 55. Bh7 Qe2+ 56. Kh3 Qf1+ 57. Kh2 Qf2+ 58. Kh3 Qe1) 1/2-1/2

[Event "Club Ajedrez Silla 60 Years 2022"]
[Site "Silla"]
[Date "2022.05.13"]
[Round "10.3"]
[White "Krasteva, Beloslava"]
[Black "Granero Roca, Antonio"]
[Result "0-1"]
[ECO "E90"]
[WhiteElo "2268"]
[BlackElo "2340"]
[Annotator "TA"]
[PlyCount "84"]
[EventDate "2022.05.09"]
[EventType "tourn"]
[EventCountry "ESP"]
[SourceTitle "playchess.com"]
[Source "ChessBase"]
[SourceQuality "1"]
[TimeControl "5400+30"]

{[%evp 13,84,24,49,29,42,36,76,44,40,0,6,6,8,8,7,0,1,15,15,20,17,0,11,0,48,12,35,-9,-26,-111,-51,-102,-106,-149,-133,-179,-167,-348,-358,-315,-296,-608,-556,-588,-595,-622,-406,-404,-403,-400,-367,-452,-510,-643,-636,-587,-473,-460,-470,-445,-429,-393,-216,-179,-137,-598,-597,-518,-505,-29994,-29995,-29995,-29996]} 1. d4 {[%emt 0:00:04]} Nf6 {[%emt 0:00:14]} 2. c4 {[%emt 0:00:06]} g6 {[%emt 0:00:58]} 3. Nc3 {[%emt 0:00:06]} Bg7 {[%emt 0:00:24]} 4. e4 {[%emt 0:00:06]} d6 {[%emt 0:00:15]} 5. h3 {[%emt 0:00:09]} O-O {[%emt 0:00:42]} 6. Be3 {[%emt 0:00:05]} Na6 {[%emt 0:01:29]} 7. Nf3 {[%emt 0:00:19]} c5 {[%emt 0:00:07]} 8. d5 {[%emt 0:00:12] E90: King's Indian: Classical: Early deviations and 6 h3.} Nc7 {[%emt 0:00:31]} 9. Bd3 {[%emt 0:00:45]} a6 {[%emt 0:00:06][%cal Ob7b5]} 10. O-O {[%emt 0:06:43] White is better.} b5 {[%emt 0:02:05]} 11. e5 {[%emt 0:01:48]} Nd7 {[%emt 0:01:41]} 12. exd6 {[%emt 0:02:45]} exd6 {[%emt 0:00:10] [#]} 13. Bg5 $146 {[%emt 0:01:33]} ({Predecessor:} 13. cxb5 axb5 14. Nxb5 Nxb5 15. Bxb5 Bxb2 16. Rb1 Bg7 17. a4 Nb6 18. Bc6 Ra6 19. Qb3 {1-0 (28) Zaichenko,D (2030)-Tashimova,N (2094) Novosibirsk 2007}) 13... f6 {[%emt 0:03:08]} 14. Bf4 {[%emt 0:00:35]} bxc4 {[%emt 0:00:24]} 15. Bxc4 {[%emt 0:00:17]} Ne5 {[%emt 0:00:09]} 16. Nxe5 {[%emt 0:03:39]} fxe5 {[%emt 0:00:14]} 17. Be3 {[%emt 0:00:27]} Rb8 {[%emt 0:02:39]} 18. Qe2 {[%emt 0:00:32]} Kh8 {[%emt 0:02:35]} (18... Qh4 $11) 19. a4 {[%emt 0:04:23]} Qh4 {[%emt 0:03:40] Inhibits Ne4.} 20. Rab1 {[%emt 0:13:07]} Bf5 {[%emt 0:02:10]} 21. Bd3 {[%emt 0:00:29] [#]} (21. Rbe1 $11 {remains equal.}) 21... Rb4 {[%emt 0:03:51] Black is more active.} (21... e4 $1 $17 {[%cal Re4d3]} 22. Bc2 Be5) 22. Bxf5 {[%emt 0:04:31]} (22. f3 $15) 22... gxf5 $17 {[%emt 0:05:18]} (22... Rxf5 $6 23. f3 $11) 23. f4 {[%emt 0:02:43]} exf4 {[%emt 0:02:01]} 24. Bf2 {[%emt 0:00:55]} (24. Bd2 $17) 24... Qg5 $19 {[%emt 0:01:31]} 25. Qd2 $2 {[%emt 0:05:56]} (25. Kh1) 25... Rg8 {[%emt 0:03:46]} 26. Be1 {[%emt 0:06:42]} Rd4 {[%emt 0:01:43]} 27. Qc2 {[%emt 0:01:47] [#]} (27. Qe2) 27... Rd3 $3 {[%emt 0:02:49][%mdl 512]} 28. Bh4 {[%emt 0:09:20] [#]} (28. Kh1 f3) 28... Qg6 {[%emt 0:06:23] Threatens to win with ...Rxh3.} 29. Kh1 {[%emt 0:08:08] [#]} (29. Ne2 Nxd5) 29... Be5 $1 {[%emt 0:06:01]} 30. Rg1 {[%emt 0:05:48]} c4 {[%emt 0:05:22] And now ...Qh6 would win.} 31. Rbd1 {[%emt 0:04:46]} Qh5 {[%emt 0:09:26]} ({And not} 31... Bd4 32. Bf2 Bxf2 33. Qxf2 $17) 32. Rxd3 {[%emt 0:00:47]} cxd3 {[%emt 0:00:10]} 33. Qf2 {[%emt 0:00:03]} d2 {[%emt 0:00:15]} 34. Nd1 {[%emt 0:04:04]} Nxd5 {[%emt 0:00:41][%cal Od5e3] aiming for ...Ne3!} 35. Qxd2 {[%emt 0:00:24]} Ne3 {[%emt 0:02:12]} ({Don't go for} 35... Qxh4 $2 36. Qxd5 Rg3 37. Qa8+ Kg7 38. Qc8 $19) 36. Be7 {[%emt 0:06:30]} Qh6 {[%emt 0:02:44] Strongly threatening ...Rg3.} 37. Qf2 {[%emt 0:01:24]} Rg3 {[%emt 0:01:44]} (37... Nd5 $142 38. Bh4 f3) 38. Nxe3 {[%emt 0:01:37]} Rxe3 {[%emt 0:01:20]} 39. Re1 $2 {[%emt 0:01:51][%mdl 8192] This move loses the game for White.} (39. Qc2 $17 Qe6 40. Qc7) 39... Rxe1+ {[%emt 0:02:53]} 40. Qxe1 {[%emt 0:00:02]} f3 $1 {[%emt 0:00:10] White must now prevent ...Qf4.} 41. gxf3 {[%emt 0:04:57]} (41. Qg1 $19 fxg2+ 42. Qxg2 Qc1+ 43. Qg1 Qc6+ 44. Qg2 Qc1+ 45. Qg1 Qxb2 46. Bg5) 41... Qxh3+ {[%emt 0:26:59]} 42. Kg1 {[%emt 0:01:05]} Bd4+ {[%emt 0:00:00] Weighted Error Value: White=0.76/Black=0.22 (precise)} 0-1